bitfinex/quotes_BTCUSD_20250711
["timestamp","ask_amount","ask_price","bid_price","bid_amount"]
[1752243539517,0.33244406,117880.0,117870.0,0.17067845]
[1752243539758,0.33244406,117880.0,117870.0,0.17916237]
[1752243539967,0.32297995,117880.0,117870.0,0.20669326]
[1752243540164,0.33994577,117880.0,117870.0,0.19820985]
[1752243540374,0.33146315,117880.0,117870.0,0.18764622]
[1752243540600,0.33146315,117880.0,117870.0,0.001]
[1752243540782,0.37131031,117880.0,117870.0,0.001]
[1752243541020,1.21216215,117880.0,117870.0,0.001]
[1752243541246,1.29759208,117880.0,117870.0,0.001]
[1752243541794,0.79674024,117880.0,117870.0,0.001]
[1752243542197,6.36508554,117880.0,117870.0,0.001]
[1752243542621,5.7564547,117880.0,117870.0,0.001]
[1752243542793,0.82220124,117880.0,117870.0,0.001]
[1752243542974,0.51816222,117870.0,117860.0,0.002]
[1752243543222,0.66199592,117870.0,117860.0,0.002]
[1752243543793,0.65351222,117870.0,117860.0,0.002]
[1752243544275,0.65664222,117870.0,117860.0,0.002]
[1752243544445,0.52340222,117870.0,117860.0,0.002]
[1752243544642,0.65988578,117870.0,117860.0,0.19074177]
[1752243544824,0.66199578,117870.0,117860.0,0.00726]
[1752243545153,0.65451222,117870.0,117860.0,0.00408]
[1752243545672,0.65551222,117870.0,117860.0,0.18225749]
[1752243545823,0.65551222,117870.0,117860.0,0.19074206]
[1752243546029,0.65551222,117870.0,117860.0,0.19922655]
[1752243546829,0.64702845,117870.0,117860.0,0.01256464]
[1752243547251,0.64702845,117870.0,117860.0,0.002]
[1752243547911,0.65868096,117870.0,117860.0,0.002]
[1752243548710,0.70388096,117870.0,117860.0,0.002]
[1752243550025,1.2047328,117870.0,117860.0,0.002]
[1752243550233,1.43521863,117870.0,117860.0,0.002]
[1752243550561,6.83521863,117870.0,117860.0,0.002]
[1752243551047,6.46068263,117870.0,117860.0,0.002]
[1752243551483,6.46006363,117870.0,117860.0,0.002]
[1752243552032,6.47460448,117870.0,117860.0,1e-08]
[1752243552952,6.47360448,117870.0,117860.0,1e-08]
[1752243553379,6.47260448,117870.0,117860.0,1e-08]
[1752243554400,6.47660448,117870.0,117860.0,1e-08]
[1752243554613,6.19830858,117870.0,117860.0,1e-08]
[1752243554772,6.33450858,117870.0,117860.0,0.00100001]
[1752243555773,5.70045674,117870.0,117860.0,0.00100001]
[1752243556024,5.34653489,117870.0,117860.0,0.00100001]
[1752243556769,5.47973489,117870.0,117860.0,0.00100001]
[1752243557128,0.55277496,117870.0,117860.0,0.00308001]
[1752243557531,0.34597496,117870.0,117860.0,0.00308001]
[1752243558130,0.21277496,117870.0,117860.0,0.00308001]
[1752243558390,0.68597496,117870.0,117860.0,0.00100001]
[1752243558942,0.68565087,117870.0,117860.0,0.00100001]
[1752243559585,0.51817734,117860.0,117850.0,0.18616268]
[1752243559780,0.51817734,117860.0,117850.0,0.19127268]
[1752243559998,0.52022734,117860.0,117850.0,0.00504802]
[1752243560167,0.52022734,117860.0,117850.0,0.18324063]
[1752243560369,0.52022734,117860.0,117850.0,0.19172584]
[1752243560813,0.51817734,117860.0,117850.0,0.19172584]
[1752243561020,0.51817734,117860.0,117850.0,0.20021098]
[1752243561227,0.52666176,117860.0,117850.0,0.20869598]
[1752243561542,0.5351464,117860.0,117850.0,0.20869598]
[1752243561844,0.6713464,117860.0,117850.0,0.23099598]
[1752243562070,0.6733464,117860.0,117850.0,0.23199598]
[1752243562446,0.49516891,117860.0,117850.0,0.23199598]
[1752243562660,0.49216863,117860.0,117850.0,0.26208083]
[1752243562795,0.49016863,117860.0,117850.0,0.26108083]
[1752243562996,0.4921682,117860.0,117850.0,0.26208083]
[1752243563281,0.002,117860.0,117850.0,0.76293267]
[1752243563454,0.13516,117860.0,117850.0,0.76293267]
[1752243564185,0.14364399,117860.0,117850.0,0.76293267]
[1752243564397,0.13516,117860.0,117850.0,0.76293267]
[1752243564595,0.14364406,117860.0,117850.0,0.76293267]
[1752243564804,0.02745255,117860.0,117850.0,0.26208083]
[1752243565016,0.16061255,117860.0,117850.0,0.26208083]
[1752243565216,0.16909704,117860.0,117850.0,0.26208083]
[1752243565429,0.16061255,117860.0,117850.0,0.26208083]
[1752243565634,0.33030598,117860.0,117850.0,0.18965592]
[1752243565843,0.16061313,117860.0,117850.0,0.21818084]
[1752243566051,0.15212856,117860.0,117850.0,0.24048084]
[1752243566258,0.14364421,117860.0,117850.0,0.26208084]
[1752243566464,0.16061248,117860.0,117850.0,0.26208084]
[1752243566679,0.1521282,117860.0,117850.0,0.26208084]
[1752243566877,0.03593697,117860.0,117850.0,0.26208084]
[1752243567117,0.16909697,117860.0,117850.0,0.26208084]
[1752243567310,0.1690969,117860.0,117850.0,0.26208084]
[1752243567934,0.16909697,117860.0,117850.0,0.26208084]
[1752243568089,0.16266248,117860.0,117850.0,0.25703282]
[1752243568308,0.34727439,117860.0,117850.0,0.25365797]
[1752243568981,0.34727439,117860.0,117850.0,0.23205797]
[1752243569186,0.34727439,117860.0,117850.0,0.22357304]
[1752243569494,0.33030619,117860.0,117850.0,0.19278775]
[1752243569704,0.33030619,117860.0,117850.0,0.20127282]
[1752243570070,0.33030619,117860.0,117850.0,0.20975782]
[1752243570345,0.33030619,117860.0,117850.0,0.20127297]
[1752243570759,0.15212827,117860.0,117850.0,0.23275782]
[1752243570970,0.002,117860.0,117850.0,0.25645782]
[1752243571146,0.13512,117860.0,117850.0,0.25645782]
[1752243571554,0.15208827,117860.0,117850.0,0.25645782]
[1752243571752,0.14360399,117860.0,117850.0,0.25645782]
[1752243572108,0.002,117860.0,117850.0,0.25645782]
[1752243572310,0.13512,117860.0,117850.0,0.25645782]
[1752243572720,0.13512,117860.0,117850.0,0.75730966]
[1752243573317,0.002,117860.0,117850.0,0.75730966]
[1752243573548,0.13512,117860.0,117850.0,0.75730966]
[1752243573756,0.002,117860.0,117850.0,0.84273959]
[1752243573960,0.002,117860.0,117850.0,0.85139804]
[1752243574799,0.001,117860.0,117850.0,0.85139804]
[1752243575004,0.001,117860.0,117850.0,0.86593889]
[1752243575304,0.001,117860.0,117850.0,0.86693889]
[1752243575508,0.06749346,117880.0,117870.0,0.19512934]
[1752243575639,0.06749346,117880.0,117870.0,0.74038118]
[1752243575850,0.06749346,117880.0,117870.0,0.83092111]
[1752243576049,0.13508,117890.0,117880.0,0.23951279]
[1752243576050,0.01896417,117890.0,117880.0,0.23951279]
[1752243576248,0.14356198,117890.0,117880.0,0.22202279]
[1752243576457,0.15204417,117890.0,117880.0,0.22202279]
[1752243577444,0.1605265,117890.0,117880.0,0.22202279]
[1752243577643,0.20557865,117890.0,117880.0,0.20022294]
[1752243577848,0.19514605,117860.0,117850.0,0.01454085]
[1752243578153,0.19514605,117860.0,117840.0,1.17172165]
[1752243578154,0.18667746,117850.0,117840.0,1.17172165]
[1752243578381,0.18872746,117850.0,117840.0,1.002]
[1752243578956,0.19741343,117850.0,117840.0,1.19073345]
[1752243579155,0.02545499,117850.0,117840.0,1.20228902]
[1752243579307,0.04242564,117850.0,117840.0,1.20228902]
[1752243579522,0.20669811,117850.0,117840.0,1.18125764]
[1752243579725,0.1897279,117850.0,117840.0,1.18329764]
[1752243579895,0.1897279,117850.0,117840.0,1.20026936]
[1752243580088,0.1897279,117850.0,117840.0,1.19485357]
[1752243580285,0.18124261,117850.0,117840.0,1.18636764]
[1752243580491,0.31432261,117850.0,117840.0,1.18636764]
[1752243581076,0.31432261,117850.0,117840.0,1.19485357]
[1752243581658,0.31432261,117850.0,117840.0,1.20333943]
[1752243581822,0.31432261,117850.0,117840.0,1.19485357]
[1752243582460,0.31227261,117850.0,117840.0,1.20333936]
[1752243582866,0.31227261,117850.0,117840.0,1.19485357]
[1752243583030,0.31432261,117850.0,117840.0,1.19485357]
[1752243583228,0.31432261,117850.0,117840.0,1.19178357]
[1752243583542,0.31227261,117850.0,117840.0,1.22031094]
[1752243583888,0.31227261,117850.0,117840.0,1.22031058]
[1752243584697,0.31227261,117850.0,117840.0,1.18636771]
[1752243584835,0.31432261,117850.0,117840.0,1.00508998]
[1752243586214,0.31432261,117850.0,117840.0,1.00304998]
[1752243586632,0.31751261,117850.0,117840.0,1.00304998]
[1752243586835,0.36151261,117850.0,117840.0,1.00304998]
[1752243587246,0.70151261,117850.0,117840.0,1.00304998]
[1752243587998,6.85613968,117850.0,117840.0,0.42563043]
[1752243588204,7.18377431,117850.0,117840.0,0.42563043]
[1752243588400,7.18377431,117850.0,117840.0,0.2324758]
[1752243588648,7.18377431,117850.0,117840.0,0.20277752]
[1752243588649,7.20924531,117850.0,117840.0,0.20277752]
[1752243588827,7.20924531,117850.0,117840.0,0.1942923]
[1752243589021,7.20924531,117850.0,117840.0,1e-08]
[1752243589222,0.18670915,117830.0,117820.0,0.002]
[1752243589422,0.95312092,117830.0,117820.0,0.0020845]
[1752243589699,0.95630092,117830.0,117820.0,0.0020845]
[1752243590293,0.34788008,117830.0,117820.0,0.0020845]
[1752243590496,0.23997015,117830.0,117820.0,0.0020845]
[1752243590675,0.35121015,117830.0,117820.0,0.0020845]
[1752243590858,0.35839015,117830.0,117820.0,0.0030845]
[1752243591083,0.48892008,117830.0,117820.0,0.0030845]
[1752243591288,0.35588008,117830.0,117820.0,0.0030845]
[1752243591488,1.07520185,117830.0,117820.0,0.0030845]
[1752243591807,0.98977192,117830.0,117820.0,0.0030845]
[1752243592150,0.98577192,117830.0,117820.0,0.0020845]
[1752243592362,0.34788008,117830.0,117820.0,0.0020845]
[1752243592564,0.48292008,117830.0,117820.0,0.0030845]
[1752243592773,0.45762008,117830.0,117820.0,0.0020845]
[1752243592954,0.32177915,117830.0,117820.0,0.0041445]
[1752243593160,0.32777915,117830.0,117820.0,0.0030845]
[1752243593525,0.32477915,117830.0,117820.0,0.0020845]
[1752243593732,0.32677915,117830.0,117820.0,0.0030845]
[1752243594048,0.32677915,117830.0,117820.0,0.00314719]
[1752243595529,0.46078908,117830.0,117820.0,0.00314719]
[1752243596529,0.37535915,117830.0,117820.0,0.00314719]
[1752243596965,0.19369915,117830.0,117820.0,0.00314719]
[1752243597172,0.32673915,117830.0,117820.0,0.00520719]
[1752243598488,0.32673915,117830.0,117820.0,0.00314719]
[1752243598904,0.37491915,117830.0,117820.0,0.00314719]
[1752243599157,0.42862596,117830.0,117820.0,0.00314719]
[1752243599567,0.82862596,117830.0,117820.0,0.00314719]
[1752243599737,0.77491915,117830.0,117820.0,0.00085984]
[1752243600726,1.36120092,117830.0,117820.0,0.00085984]
[1752243601139,0.86034908,117830.0,117820.0,0.00085984]
[1752243602362,0.96120092,117830.0,117820.0,0.00085984]
[1752243603095,0.86034908,117830.0,117820.0,0.00085984]
[1752243603742,0.94917501,117830.0,117820.0,0.00085984]
[1752243603922,0.96459692,117830.0,117820.0,0.00085984]
[1752243605530,0.46374508,117830.0,117820.0,0.00085984]
[1752243606095,0.28252508,117830.0,117820.0,0.00085984]
[1752243606242,0.41556508,117830.0,117820.0,0.00085984]
[1752243607516,0.28252508,117830.0,117820.0,0.00085984]
[1752243607682,0.41556508,117830.0,117820.0,0.00085984]
[1752243609730,0.41874508,117830.0,117820.0,0.00085984]
[1752243610321,0.41556508,117830.0,117820.0,0.00085984]
[1752243610465,0.28053508,117830.0,117820.0,0.00607984]
[1752243610669,0.19510515,117830.0,117820.0,0.21500498]
[1752243610879,0.31965871,117830.0,117820.0,0.05017984]
[1752243611285,0.31626271,117830.0,117820.0,0.22841775]
[1752243611550,0.01348622,117830.0,117820.0,0.25387929]
[1752243611779,0.14652622,117830.0,117820.0,0.75473113]
[1752243611983,0.005,117830.0,117820.0,0.84016106]
[1752243612198,0.13804,117830.0,117820.0,0.84016106]
[1752243612455,0.13504,117830.0,117820.0,0.84016106]
[1752243612658,0.13604,117830.0,117820.0,0.33930922]
[1752243612883,0.14452622,117830.0,117820.0,0.33930922]
[1752243613087,0.15101251,117830.0,117820.0,0.33851207]
[1752243613293,0.003,117830.0,117820.0,0.33951207]
[1752243613512,0.01148615,117830.0,117820.0,0.33951207]
[1752243613724,0.01148615,117830.0,117820.0,0.33851207]
[1752243613725,0.14252615,117830.0,117820.0,0.33851207]
[1752243613914,0.15101244,117830.0,117820.0,0.33851207]
[1752243614121,0.15101237,117830.0,117820.0,0.33851207]
[1752243614371,0.14152615,117830.0,117820.0,0.33851207]
[1752243614675,0.13404,117830.0,117820.0,0.33951207]
[1752243614876,0.14252622,117830.0,117820.0,0.33951207]
[1752243615023,0.13404,117830.0,117820.0,0.33951207]
[1752243615415,0.001,117830.0,117820.0,0.84036391]
[1752243615616,0.134,117830.0,117820.0,0.84036391]
[1752243616256,0.14248615,117830.0,117820.0,0.84036391]
[1752243616655,0.14248615,117830.0,117820.0,0.33951207]
[1752243616890,0.134,117830.0,117820.0,0.84036391]
[1752243617404,0.32919537,117830.0,117820.0,0.05038269]
[1752243617631,0.39016261,117830.0,117820.0,0.17287315]
[1752243617837,0.08546612,117830.0,117820.0,0.22582469]
[1752243618048,0.00948622,117830.0,117820.0,0.75077653]
[1752243618253,0.134,117830.0,117820.0,0.83620646]
[1752243618685,0.001,117830.0,117820.0,0.83620646]
[1752243618876,0.134,117830.0,117820.0,0.83620646]
[1752243619346,0.134,117830.0,117820.0,0.33535462]
[1752243620309,0.001,117830.0,117820.0,0.33535462]
[1752243620515,0.001,117830.0,117820.0,0.83620646]
[1752243620718,0.00948615,117830.0,117820.0,0.33535462]
[1752243620917,0.001,117830.0,117820.0,0.33535462]
[1752243621118,0.001,117830.0,117820.0,0.83620646]
[1752243621930,0.001,117830.0,117820.0,0.33535462]
[1752243622139,0.001,117830.0,117820.0,0.83620646]
[1752243622556,0.001,117830.0,117820.0,0.85074731]
[1752243623253,0.002,117850.0,117840.0,0.24177902]
[1752243623470,0.002,117850.0,117840.0,0.83007079]
[1752243623668,0.002,117850.0,117840.0,0.83326079]
[1752243623871,0.002,117850.0,117840.0,0.83332348]
[1752243624677,0.004,117850.0,117840.0,0.83432348]
[1752243625017,0.002,117850.0,117840.0,0.83332348]
[1752243625211,0.002,117850.0,117840.0,0.33447164]
[1752243625440,0.004,117850.0,117840.0,0.83532348]
[1752243625572,0.003,117850.0,117840.0,0.83332348]
[1752243625774,0.002,117850.0,117840.0,0.83732348]
[1752243626073,0.003,117850.0,117840.0,0.83628912]
[1752243629515,0.003,117850.0,117840.0,0.85282997]
[1752243630037,0.003,117850.0,117840.0,1.19282997]
[1752243632168,0.002,117870.0,117860.0,0.2433459]
[1752243632325,0.002,117870.0,117860.0,1.09747767]
[1752243632492,0.002,117870.0,117860.0,1.10066767]
[1752243632693,0.002,117870.0,117860.0,1.10073036]
[1752243633318,0.00204995,117870.0,117860.0,1.10073036]
[1752243634421,0.00204995,117870.0,117860.0,0.83489036]
[1752243634623,0.02197671,117870.0,117860.0,0.28464852]
[1752243635387,0.03046034,117870.0,117860.0,0.28464852]
[1752243635595,0.02197671,117870.0,117860.0,0.28464852]
[1752243636222,0.00304995,117870.0,117860.0,0.28783852]
[1752243636448,0.00304995,117870.0,117860.0,0.81259036]
[1752243636620,0.00304995,117870.0,117860.0,0.31173852]
[1752243636960,0.01153322,117870.0,117860.0,0.78869036]
[1752243637409,0.01153322,117870.0,117860.0,0.28783852]
[1752243637799,0.00304995,117870.0,117860.0,0.28783852]
[1752243638533,0.00304995,117870.0,117860.0,0.78869036]
[1752243638767,0.00304995,117870.0,117860.0,0.83539036]
[1752243644629,0.00500995,117870.0,117860.0,0.41748852]
[1752243644844,0.02197671,117870.0,117860.0,0.41748852]
[1752243645056,0.01349322,117870.0,117860.0,0.41748852]
[1752243645258,0.01349322,117870.0,117860.0,0.42067852]
[1752243645471,0.02197671,117870.0,117860.0,0.42067852]
[1752243645685,0.01349322,117870.0,117860.0,0.42067852]
[1752243646078,0.02197663,117870.0,117860.0,0.42067852]
[1752243646475,0.00500995,117870.0,117860.0,0.42067852]
[1752243646683,0.00304995,117870.0,117860.0,0.94543036]
[1752243646893,0.00304995,117870.0,117860.0,0.97083036]
[1752243647655,0.15180395,117890.0,117880.0,0.19511279]
[1752243647885,0.002,117890.0,117880.0,0.28266272]
[1752243648086,0.002,117890.0,117880.0,0.78653725]
[1752243648294,0.01896395,117890.0,117880.0,0.78653725]
[1752243648756,0.01896395,117890.0,117880.0,0.28568541]
[1752243648985,0.002,117890.0,117880.0,0.28568541]
[1752243649187,0.005,117890.0,117880.0,0.28568541]
[1752243649358,0.005,117890.0,117880.0,0.78653725]
[1752243650980,0.005,117890.0,117880.0,1.10017725]
[1752243651262,0.006,117890.0,117880.0,1.10017725]
[1752243652018,0.003,117890.0,117880.0,1.10017725]
[1752243652228,0.01148183,117890.0,117880.0,1.07677725]
[1752243652434,0.003,117890.0,117880.0,1.05217725]
[1752243652640,0.003,117890.0,117880.0,0.28568541]
[1752243652849,0.003,117890.0,117880.0,0.79833125]
[1752243653335,0.004,117890.0,117880.0,0.79833125]
[1752243654452,0.21204283,117900.0,117890.0,0.19509646]
[1752243654592,0.02744384,117900.0,117890.0,0.80377421]
[1752243654798,0.67241148,117910.0,117900.0,0.1950797]
[1752243654799,0.002,117910.0,117900.0,0.1950797]
[1752243654993,0.02759163,117910.0,117900.0,0.71280554]
[1752243655653,0.04655335,117910.0,117900.0,0.71280554]
[1752243655848,0.04655335,117910.0,117900.0,0.71286823]
[1752243655849,0.04655386,117910.0,117900.0,0.71286823]
[1752243656044,0.04655386,117910.0,117900.0,0.70990823]
[1752243656274,0.21617525,117910.0,117900.0,0.70990837]
[1752243656406,0.03807332,117910.0,117900.0,0.71838963]
[1752243656998,0.03907332,117910.0,117900.0,0.71838963]
[1752243657360,0.20869421,117910.0,117900.0,0.71838963]
[1752243657798,0.20869421,117910.0,117900.0,0.70990837]
[1752243658112,0.20869421,117910.0,117900.0,0.18666113]
[1752243658113,0.20021353,117910.0,117900.0,0.18666113]
[1752243658320,0.24093271,117910.0,117900.0,0.18666113]
[1752243658520,1.21246668,117910.0,117900.0,6.269e-05]
[1752243660105,1.07970668,117910.0,117900.0,6.269e-05]
[1752243660318,0.69982084,117910.0,117900.0,6.269e-05]
[1752243660657,1.29789661,117910.0,117900.0,6.269e-05]
[1752243660874,0.57434578,117870.0,117860.0,0.002]
[1752243661082,1.21034177,117870.0,117860.0,0.002]
[1752243661328,1.63889077,117870.0,117860.0,0.002]
[1752243661530,1.13765478,117870.0,117860.0,0.002]
[1752243662732,1.13965478,117870.0,117860.0,0.002]
[1752243662946,1.77770677,117870.0,117860.0,0.002]
[1752243663155,6.39224762,117870.0,117860.0,0.002]
[1752243663379,6.34086155,117870.0,117860.0,0.002]
[1752243663581,6.74086155,117870.0,117860.0,0.002]
[1752243663781,6.23962556,117870.0,117860.0,0.002]
[1752243664078,6.34086155,117870.0,117860.0,0.002]
[1752243664949,6.34286155,117870.0,117860.0,0.002]
[1752243665371,6.37662484,117870.0,117860.0,0.002]
[1752243667574,6.34286155,117870.0,117860.0,0.002]
[1752243667808,6.21010155,117870.0,117860.0,0.002]
[1752243668031,6.34286155,117870.0,117860.0,0.002]
[1752243668725,0.69432471,117870.0,117860.0,0.002]
[1752243668936,0.74165478,117870.0,117860.0,0.002]
[1752243669153,0.37546478,117870.0,117860.0,0.002]
[1752243669320,0.24270478,117870.0,117860.0,0.002]
[1752243669577,0.35086478,117870.0,117860.0,0.002]
[1752243669794,0.21810478,117870.0,117860.0,0.002]
[1752243670008,0.31692222,117870.0,117860.0,0.002]
[1752243670223,0.31692222,117870.0,117860.0,0.17169285]
[1752243670429,0.31692222,117870.0,117860.0,0.20222626]
[1752243670430,0.53064578,117870.0,117860.0,0.20222626]
[1752243670641,0.67188963,117870.0,117860.0,0.18525749]
[1752243670852,0.66540607,117870.0,117860.0,0.18229749]
[1752243671000,0.66340607,117870.0,117860.0,0.18229749]
[1752243671211,0.52864607,117870.0,117860.0,0.18525749]
[1752243671412,0.48424356,117870.0,117860.0,0.21071054]
[1752243671753,0.34948334,117870.0,117860.0,0.21071054]
[1752243672031,0.66240592,117870.0,117860.0,0.002]
[1752243672250,0.58173592,117870.0,117860.0,0.002]
[1752243672441,0.71449592,117870.0,117860.0,0.002]
[1752243673291,0.66549592,117870.0,117860.0,0.002]
[1752243673545,1.21393191,117870.0,117860.0,0.002]
[1752243673968,1.21393191,117870.0,117840.0,0.002]
[1752243673969,0.57387746,117850.0,117840.0,0.002]
[1752243674172,1.20787345,117850.0,117840.0,0.00204995]
[1752243674599,1.29639338,117850.0,117840.0,0.00204995]
[1752243675122,1.29639338,117850.0,117840.0,0.00404995]
[1752243675338,1.31513366,117850.0,117840.0,0.00404995]
[1752243675543,1.29639338,117850.0,117840.0,0.00404995]
[1752243675968,1.29639338,117850.0,117840.0,0.00204995]
[1752243676212,1.29639338,117850.0,117820.0,0.002]
[1752243676213,0.57670915,117830.0,117820.0,0.002]
[1752243676360,1.21070514,117830.0,117820.0,0.002]
[1752243676561,1.26243077,117830.0,117820.0,0.002]
[1752243676818,1.23952621,117830.0,117820.0,0.002]
[1752243677009,1.32495614,117830.0,117820.0,0.002]
[1752243677346,1.35042614,117830.0,117820.0,0.002]
[1752243678011,1.21766614,117830.0,117820.0,0.002]
[1752243678167,1.35042614,117830.0,117820.0,0.002]
[1752243678352,1.75042614,117830.0,117820.0,0.004]
[1752243678787,1.75042614,117830.0,117820.0,0.002]
[1752243679212,1.81443745,117830.0,117820.0,0.002]
[1752243679420,1.81639745,117830.0,117820.0,0.002]
[1752243680817,1.68363745,117830.0,117820.0,0.002]
[1752243681070,1.76297521,117830.0,117820.0,0.002]
[1752243681385,1.76497521,117830.0,117820.0,0.002]
[1752243682196,1.13097922,117830.0,117820.0,0.002]
[1752243682406,0.96672822,117830.0,117820.0,0.00407]
[1752243682646,0.75948822,117830.0,117820.0,0.00407]
[1752243682884,0.73401822,117830.0,117820.0,0.00407]
[1752243683136,0.33401822,117830.0,117820.0,0.002]
[1752243683544,0.67401822,117830.0,117820.0,0.00407]
[1752243684391,0.53266915,117830.0,117820.0,0.00407]
[1752243684628,0.66346915,117830.0,117820.0,0.00721]
[1752243684761,0.65498271,117830.0,117820.0,0.17696046]
[1752243684980,0.65694271,117830.0,117820.0,0.00721]
[1752243685158,0.65694271,117830.0,117820.0,0.00407]
[1752243685363,0.66882261,117830.0,117820.0,0.002]
[1752243685557,0.65997271,117830.0,117820.0,0.002]
[1752243685758,0.65694271,117830.0,117820.0,0.002]
[1752243686473,1.2080087,117830.0,117820.0,0.002]
[1752243687270,1.29343863,117830.0,117820.0,0.002]
[1752243690912,0.18674084,117810.0,117800.0,0.00204]
[1752243691122,0.32146084,117810.0,117800.0,0.00204]
[1752243691696,0.85119883,117810.0,117800.0,0.00204]
[1752243692103,0.85132592,117810.0,117800.0,0.00204]
[1752243692328,0.85132592,117810.0,117800.0,0.00404]
[1752243692530,0.85132592,117810.0,117800.0,0.00504]
[1752243693605,0.89972592,117810.0,117800.0,0.00504]
[1752243693727,0.87512592,117810.0,117800.0,0.00504]
[1752243694804,0.37388993,117810.0,117800.0,0.00504]
[1752243695006,0.87512592,117810.0,117800.0,0.00504]
[1752243695205,0.37388993,117810.0,117800.0,0.00504]
[1752243695377,0.87512592,117810.0,117800.0,0.00504]
[1752243695832,0.88635702,117810.0,117800.0,0.00504]
[1752243695967,0.96055585,117810.0,117800.0,0.00504]
[1752243696942,0.43551986,117810.0,117800.0,0.00504]
[1752243697166,0.21429993,117810.0,117800.0,0.00711]
[1752243697369,0.34505993,117810.0,117800.0,0.01025]
[1752243697495,0.21233993,117810.0,117800.0,0.01025]
[1752243697692,0.31958793,117810.0,117800.0,0.03585]
[1752243698101,6.29964385,117810.0,117800.0,0.00504]
[1752243698334,6.3141847,117810.0,117800.0,0.00504]
[1752243698970,6.3141847,117810.0,117800.0,0.00304]
[1752243699204,6.7141847,117810.0,117800.0,0.00204]
[1752243699412,6.79961463,117810.0,117800.0,0.00204]
[1752243699621,6.80161463,117810.0,117800.0,0.00204]
[1752243699847,0.18677256,117790.0,117780.0,0.00234892]
[1752243700087,5.58125436,117770.0,117760.0,0.0024]
[1752243700308,0.1783438,117750.0,117740.0,0.0024]
[1752243700510,0.81425979,117750.0,117740.0,0.0024]
[1752243700941,0.3160538,117750.0,117740.0,0.0024]
[1752243701144,0.34149407,117750.0,117740.0,0.0024]
[1752243701339,0.51835894,117740.0,117730.0,0.0004]
[1752243701540,0.52031894,117740.0,117730.0,0.00089987]
[1752243701739,0.51837409,117730.0,117720.0,0.0056]
[1752243702107,0.6680816,117730.0,117720.0,0.19783827]
[1752243702310,0.66154803,117730.0,117720.0,0.00453]
[1752243702517,1.16278402,117730.0,117720.0,0.00246]
[1752243702720,0.17838924,117720.0,117710.0,0.0004]
[1752243702891,0.68158523,117720.0,117710.0,0.0004]
[1752243703387,1.01964039,117710.0,117700.0,0.0024]
[1752243703662,0.17841956,117700.0,117690.0,0.00354]
[1752243704080,0.17841956,117700.0,117690.0,0.00561]
[1752243704297,0.51843486,117690.0,117680.0,0.0024]
[1752243704502,0.65115486,117690.0,117680.0,0.0024]
[1752243705001,0.6516535,117690.0,117680.0,0.00554]
[1752243705201,0.6516535,117690.0,117680.0,0.0024]
[1752243705636,0.6516935,117690.0,117680.0,0.18599003]
[1752243705843,0.52743018,117690.0,117680.0,0.19548743]
[1752243706051,0.53592657,117690.0,117680.0,0.19548743]
[1752243706284,0.14175488,117690.0,117680.0,0.3451118]
[1752243706662,0.13325864,117690.0,117680.0,0.3451118]
[1752243707089,0.00049864,117690.0,117680.0,0.3451118]
[1752243708398,0.00846901,117690.0,117680.0,0.3451118]
[1752243708729,0.34516273,117700.0,117690.0,0.21023154]
[1752243708952,0.34516338,117700.0,117690.0,0.30755763]
[1752243709179,0.33666764,117700.0,117690.0,0.3075577]
[1752243709382,0.1497514,117700.0,117690.0,0.31605416]
[1752243709536,0.14125559,117700.0,117690.0,0.31605416]
[1752243709735,0.14125559,117700.0,117690.0,0.32455055]
[1752243709897,0.13276,117700.0,117690.0,0.32455055]
[1752243710097,0.13276,117700.0,117690.0,0.23912062]
[1752243710311,0.14975155,117700.0,117690.0,0.19033117]
[1752243710509,0.14125567,117700.0,117690.0,0.20732416]
[1752243710714,0.14125567,117700.0,117690.0,0.1988277]
[1752243710963,0.14125567,117700.0,117690.0,0.20732409]
[1752243711407,0.14125559,117700.0,117690.0,0.21682055]
[1752243711551,0.34849494,117710.0,117690.0,0.2083233]
[1752243711782,0.34849494,117710.0,117700.0,0.19866118]
[1752243712001,0.4728,117710.0,117700.0,0.19221551]
[1752243712202,0.4728,117710.0,117700.0,0.20071118]
[1752243712422,0.34,117710.0,117700.0,0.33374111]
[1752243712628,0.002,117730.0,117720.0,0.22097798]
[1752243712842,0.002,117730.0,117720.0,0.24517798]
[1752243713042,0.002,117730.0,117720.0,0.24842798]
[1752243715687,0.01049336,117730.0,117720.0,0.24842798]
[1752243715891,0.002,117730.0,117720.0,0.24842798]
[1752243716099,0.01049343,117730.0,117720.0,0.24842798]
[1752243716525,0.002,117730.0,117720.0,0.24842798]
[1752243717138,0.002,117730.0,117720.0,0.25047798]
[1752243717348,0.004,117730.0,117720.0,0.25047798]
[1752243717553,0.01249343,117730.0,117720.0,0.25047798]
[1752243718138,0.004,117730.0,117720.0,0.25047798]
[1752243719697,0.01249343,117730.0,117720.0,0.25047798]
[1752243720071,0.01249343,117730.0,117720.0,0.22627798]
[1752243720270,0.02098708,117730.0,117720.0,0.17519466]
[1752243720508,0.1953782,117720.0,117710.0,0.17314643]
[1752243720745,0.18689977,117710.0,117700.0,0.16991918]
[1752243720967,0.18887977,117710.0,117700.0,0.18046528]
[1752243721195,0.52887977,117710.0,117700.0,0.17196918]
[1752243721417,0.52887977,117710.0,117700.0,0.17197353]
[1752243721897,0.35897025,117710.0,117700.0,0.2007114]
[1752243722114,0.53539472,117710.0,117700.0,0.17522353]
[1752243722319,0.5288797,117710.0,117700.0,0.17197353]
[1752243722528,0.5288797,117710.0,117700.0,0.17192353]
[1752243722765,0.61728963,117710.0,117700.0,0.002]
[1752243723008,1.03011569,117710.0,117700.0,0.002]
[1752243723959,0.5288797,117710.0,117700.0,0.002]
[1752243724412,0.5318597,117710.0,117700.0,0.002]
[1752243725034,1.03309569,117710.0,117700.0,0.002]
[1752243725246,1.03011569,117710.0,117700.0,0.004]
[1752243727616,0.35047523,117710.0,117700.0,0.18446963]
[1752243727853,0.04248288,117720.0,117710.0,0.16990909]
[1752243728053,0.02548303,117720.0,117710.0,0.18894949]
[1752243728211,0.16673754,117720.0,117710.0,0.1804544]
[1752243728412,0.50673754,117720.0,117710.0,0.19219963]
[1752243728612,0.14974852,117720.0,117710.0,0.19219963]
[1752243728814,0.19736189,117730.0,117720.0,0.16989466]
[1752243729016,0.35698881,117720.0,117710.0,0.19864457]
[1752243729222,0.37397761,117720.0,117710.0,0.20069457]
[1752243729446,0.37397761,117720.0,117710.0,0.20169457]
[1752243729624,0.37397761,117720.0,117710.0,0.19319948]
[1752243729848,0.37397761,117720.0,117710.0,0.19219977]
[1752243730078,0.38247234,117720.0,117710.0,0.1931997]